fUSD/lending_fUSD_20250204
["ID","MTS","AMOUNT","RATE_DAILY","PERIOD"]
[351590741,1738651853423,-500.0,8.727e-05,2]
[351590742,1738651853433,-1701.57,8.727e-05,2]
[351590743,1738651853443,-500.0,8.727e-05,2]
[351590744,1738651853452,-501.40215704,8.727e-05,2]
[351590745,1738651853462,-500.0,8.727e-05,2]
[351590746,1738651853472,-500.0,8.727e-05,2]
[351590747,1738651853481,-1227.61,8.727e-05,2]
[351590748,1738651853491,-1258.33,8.727e-05,2]
[351590749,1738651853502,-500.0,8.727e-05,2]
[351590750,1738651853512,-500.0,8.727e-05,2]
[351590751,1738651853522,-500.0,8.727e-05,2]
[351590752,1738651853531,-533.93,8.727e-05,2]
[351590753,1738651853540,-500.0,8.727e-05,2]
[351590754,1738651853550,-500.0,8.727e-05,2]
[351590755,1738651853559,-500.0,8.727e-05,2]
[351590756,1738651853568,-500.0,8.727e-05,2]
[351590757,1738651853578,-1867.62,8.727e-05,2]
[351590758,1738651853588,-509.7228999,8.727e-05,2]
[351590759,1738651853597,-500.0,8.727e-05,2]
[351590760,1738651853606,-500.0,8.727e-05,2]
[351590761,1738651853616,-500.0,8.727e-05,2]
[351590762,1738651853626,-500.0,8.727e-05,2]
[351590763,1738651853635,-2414.87,8.727e-05,2]
[351590764,1738651853644,-500.0,8.727e-05,2]
[351590765,1738651853653,-505.4305638,8.727e-05,2]
[351590766,1738651853663,-1692.34,8.727e-05,2]
[351590767,1738651853671,-974.44,8.727e-05,2]
[351590768,1738651853681,-2119.85,8.727e-05,2]
[351590769,1738651853691,-500.0,8.727e-05,2]
[351590770,1738651853700,-500.0,8.727e-05,2]
[351590771,1738651853709,-500.0,8.727e-05,2]
[351590772,1738651853719,-500.0,8.727e-05,2]
[351590773,1738651853729,-500.0,8.727e-05,2]
[351590774,1738651853739,-608.12,8.727e-05,2]
[351590775,1738651853750,-500.0,8.727e-05,2]
[351590776,1738651853761,-500.0,8.727e-05,2]
[351590777,1738651853771,-500.0,8.727e-05,2]
[351590778,1738651853780,-500.0,8.727e-05,2]
[351590779,1738651853791,-706.35,8.727e-05,2]
[351590780,1738651853801,-980.64,8.727e-05,2]
[351590781,1738651853810,-500.0,8.727e-05,2]
[351590782,1738651853820,-557.68,8.727e-05,2]
[351590783,1738651853830,-500.0,8.727e-05,2]
[351590784,1738651853839,-1544.16,8.727e-05,2]
[351590785,1738651853849,-1127.81,8.727e-05,2]
[351590786,1738651853858,-500.0,8.727e-05,2]
[351590787,1738651853868,-500.0,8.727e-05,2]
[351590788,1738651853878,-842.89,8.727e-05,2]
[351590789,1738651853887,-502.06193654,8.727e-05,2]
[351590790,1738651853897,-962.28,8.727e-05,2]
[351590791,1738651853907,-500.0,8.727e-05,2]
[351590792,1738651853917,-583.68,8.727e-05,2]
[351590793,1738651853926,-500.0,8.727e-05,2]
[351590794,1738651853936,-880.05,8.727e-05,2]
[351590795,1738651853946,-1664.57,8.727e-05,2]
[351590796,1738651853956,-500.0,8.727e-05,2]
[351590797,1738651853966,-500.0,8.727e-05,2]
[351590798,1738651853976,-1460.87,8.727e-05,2]
[351590799,1738651853986,-537.15,8.727e-05,2]
[351590800,1738651853995,-2650.59,8.727e-05,2]
[351590801,1738651854007,-1032.75,8.727e-05,2]
[351590802,1738651854017,-2028.0,8.728e-05,2]
[351590803,1738651854027,-642.30674166,8.728e-05,2]
[351590804,1738651854038,-500.0,8.728e-05,2]
[351590805,1738651854048,-503.11851443,8.728e-05,2]
[351590806,1738651854057,-500.0,8.728e-05,2]
[351590807,1738651854066,-500.0,8.728e-05,2]
[351590808,1738651854076,-500.0,8.728e-05,2]
[351590809,1738651854085,-619.84682209,8.728e-05,2]
[351590810,1738651854096,-410.98345375,8.728e-05,2]
[351590811,1738651854109,-500.0,8.728e-05,2]
[351590812,1738651854119,-632.69082658,8.728e-05,2]
[351590813,1738651854128,-500.0,8.728e-05,2]
[351590814,1738651854138,-256.50888927,8.728e-05,2]
[351590815,1738651854149,-500.0,8.728e-05,2]
[351590816,1738651854159,-161.80342238,8.728e-05,2]
[351590817,1738651854169,-500.0,8.728e-05,2]
[351590818,1738651854180,-500.0,8.728e-05,2]
[351590819,1738651854190,-503.17605537,8.728e-05,2]
[351590820,1738651854200,-500.0,8.728e-05,2]
[351590821,1738651854209,-500.0,8.728e-05,2]
[351590822,1738651854219,-500.31933172,8.728e-05,2]
[351590823,1738651854229,-500.85134235,8.728e-05,2]
[351590824,1738651854239,-500.0,8.728e-05,2]
[351590825,1738651854250,-501.00822337,8.728e-05,2]
[351590826,1738651854260,-500.0,8.728e-05,2]
[351590827,1738651854270,-500.0,8.728e-05,2]
[351590828,1738651854280,-500.0,8.728e-05,2]
[351590829,1738651854290,-505.15539679,8.728e-05,2]
[351590830,1738651854300,-500.0,8.728e-05,2]
[351590831,1738651854310,-500.0,8.728e-05,2]
[351590832,1738651854321,-507.5954536,8.728e-05,2]
[351590833,1738651854331,-500.0,8.728e-05,2]
[351590834,1738651854341,-453.87165918,8.728e-05,2]
[351590835,1738651854350,-500.0,8.728e-05,2]
[351590836,1738651854360,-500.0,8.728e-05,2]
[351590837,1738651854370,-300.0,8.728e-05,2]
[351590838,1738651854379,-503.15915965,8.728e-05,2]
[351590839,1738651854388,-500.0,8.728e-05,2]
[351590840,1738651854398,-500.0,8.728e-05,2]
[351590841,1738651854407,-500.0,8.728e-05,2]
[351590842,1738651854417,-151.0,8.728e-05,2]
[351590843,1738651854427,-151.0,8.728e-05,2]
[351590844,1738651854436,-151.0,8.728e-05,2]
[351590845,1738651854445,-500.0,8.728e-05,2]
[351590846,1738651854455,-500.0,8.728e-05,2]
[351590847,1738651854465,-500.0,8.728e-05,2]
[351590848,1738651854474,-500.0,8.728e-05,2]
[351590849,1738651854484,-500.0,8.728e-05,2]
[351590850,1738651854494,-500.13727292,8.728e-05,2]
[351590851,1738651854505,-500.0,8.728e-05,2]
[351590852,1738651854515,-500.0,8.728e-05,2]
[351590853,1738651854525,-500.0,8.728e-05,2]
[351590854,1738651854535,-621.30045888,8.728e-05,2]
[351590855,1738651854544,-500.0,8.728e-05,2]
[351590856,1738651854554,-500.0,8.728e-05,2]
[351590857,1738651854563,-500.0,8.728e-05,2]
[351590858,1738651854572,-500.0,8.728e-05,2]
[351590859,1738651854582,-500.0,8.728e-05,2]
[351590860,1738651854591,-500.0,8.728e-05,2]
[351590861,1738651854600,-501.03504397,8.728e-05,2]
[351590862,1738651854610,-500.0,8.728e-05,2]
[351590863,1738651854619,-500.0,8.728e-05,2]
[351590864,1738651854629,-500.0,8.728e-05,2]
[351590865,1738651854639,-500.0,8.728e-05,2]
[351590866,1738651854648,-500.0,8.728e-05,2]
[351590867,1738651854658,-501.15058828,8.728e-05,2]
[351590868,1738651854668,-500.28844134,8.728e-05,2]
[351590869,1738651854678,-500.0,8.728e-05,2]
[351590870,1738651854687,-151.0,8.728e-05,2]
[351590871,1738651854696,-151.0,8.728e-05,2]
[351590872,1738651854706,-151.0,8.728e-05,2]
[351590873,1738651854715,-151.0,8.728e-05,2]
[351590874,1738651854724,-151.0,8.728e-05,2]
[351590875,1738651854734,-500.0,8.728e-05,2]
[351590876,1738651854744,-151.0,8.728e-05,2]
[351590877,1738651854755,-151.0,8.728e-05,2]
[351590878,1738651854765,-151.0,8.728e-05,2]
[351590879,1738651854774,-500.0,8.728e-05,2]
[351590880,1738651854784,-500.0,8.728e-05,2]
[351590881,1738651854793,-500.0,8.728e-05,2]
[351590882,1738651854803,-577.92602189,8.728e-05,2]
[351590883,1738651854812,-500.0,8.728e-05,2]
[351590884,1738651854822,-500.0,8.728e-05,2]
[351590885,1738651854831,-500.0,8.728e-05,2]
[351590886,1738651854841,-1816.98,8.728e-05,2]
[351590887,1738651854851,-500.0,8.728e-05,2]
[351590888,1738651854860,-800.32,8.728e-05,2]
[351590889,1738651854869,-151.0,8.728e-05,2]
[351590890,1738651854879,-151.0,8.728e-05,2]
[351590891,1738651854888,-151.0,8.728e-05,2]
[351590892,1738651854897,-151.0,8.728e-05,2]
[351590893,1738651854906,-151.0,8.728e-05,2]
[351590894,1738651854916,-151.0,8.728e-05,2]
[351590895,1738651854926,-162.904034,8.728e-05,2]
[351590896,1738651854935,-2661.74,8.728e-05,2]
[351590897,1738651854944,-3559.44,8.728e-05,2]
[351590898,1738651854954,-500.0,8.728e-05,2]
[351590899,1738651854964,-1000.2,8.728e-05,2]
[351590900,1738651854973,-1789.57,8.728e-05,2]
[351590901,1738651854983,-1346.06,8.728e-05,2]
[351590902,1738651854992,-500.0,8.728e-05,2]
[351590903,1738651855003,-500.0,8.728e-05,2]
[351590904,1738651855013,-500.0,8.728e-05,2]
[351590905,1738651855023,-151.0,8.728e-05,2]
[351590906,1738651855032,-503.36482719,8.728e-05,2]
[351590907,1738651855042,-151.0,8.728e-05,2]
[351590908,1738651855051,-151.0,8.728e-05,2]
[351590909,1738651855060,-500.0,8.728e-05,2]
[351590910,1738651855070,-500.0,8.728e-05,2]
[351590911,1738651855079,-500.0,8.728e-05,2]
[351590912,1738651855089,-1910.87,8.728e-05,2]
[351590913,1738651855099,-574.03,8.728e-05,2]
[351590914,1738651855267,-1533.37,8.728e-05,2]
[351590915,1738651855278,-1637.92,8.728e-05,2]
[351590916,1738651855287,-500.0,8.728e-05,2]
[351590917,1738651855298,-504.94689033,8.728e-05,2]
[351590918,1738651855307,-500.0,8.728e-05,2]
[351590919,1738651855317,-2100.89,8.728e-05,2]
[351590920,1738651855327,-1545.56,8.728e-05,2]
[351590921,1738651855336,-1220.82,8.728e-05,2]
[351590922,1738651855345,-1891.37,8.728e-05,2]
[351590923,1738651855354,-1353.58,8.728e-05,2]
[351590924,1738651855364,-500.0,8.728e-05,2]
[351590925,1738651855373,-1583.7,8.728e-05,2]
[351590926,1738651855383,-1583.7,8.728e-05,2]
[351590927,1738651855392,-1583.7,8.728e-05,2]
[351590928,1738651855401,-1547.3,8.728e-05,2]
[351590929,1738651855411,-1928.93,8.728e-05,2]
[351590930,1738651855420,-951.36,8.728e-05,2]
[351590931,1738651855430,-1905.83,8.728e-05,2]
[351590932,1738651855439,-2772.81,8.728e-05,2]
[351590933,1738651855448,-1936.34,8.728e-05,2]
[351590934,1738651855458,-1218.2,8.728e-05,2]
[351590935,1738651855467,-760.65,8.728e-05,2]
[351590936,1738651855477,-1833.02,8.728e-05,2]
[351590937,1738651855486,-1760.21,8.728e-05,2]
[351590938,1738651855495,-1969.26,8.728e-05,2]
[351590939,1738651855508,-557.17,8.728e-05,2]
[351590940,1738651855517,-2207.04,8.728e-05,2]
[351590941,1738651855525,-1067.3,8.728e-05,2]
[351590942,1738651855534,-1711.85,8.728e-05,2]
[351590943,1738651855544,-606.13,8.728e-05,2]
[351590944,1738651855553,-949.48,8.728e-05,2]
[351590945,1738651855563,-1026.18,8.728e-05,2]
[351590946,1738651855572,-197.0204,8.728e-05,2]
[351590947,1738651855582,-197.0204,8.728e-05,2]
[351590948,1738651855591,-197.0204,8.728e-05,2]
[351590949,1738651855601,-197.0204,8.728e-05,2]
[351590950,1738651855611,-197.0204,8.728e-05,2]
[351590951,1738651855621,-197.0204,8.728e-05,2]
[351590952,1738651855630,-197.0204,8.728e-05,2]
[351590953,1738651855640,-197.0204,8.728e-05,2]
[351590954,1738651855650,-197.0204,8.728e-05,2]
[351590955,1738651855659,-197.0204,8.728e-05,2]
[351590956,1738651855669,-579.86,8.728e-05,2]
[351590957,1738651855679,-991.53,8.728e-05,2]
[351590958,1738651855688,-1828.91,8.728e-05,2]
[351590959,1738651855698,-1160.19,8.728e-05,2]
[351590960,1738651855708,-500.0,8.728e-05,2]
[351590961,1738651855717,-1961.27,8.728e-05,2]
[351590962,1738651855726,-151.0,8.729e-05,2]
[351590963,1738651855735,-151.0,8.729e-05,2]
[351590964,1738651855744,-151.0,8.729e-05,2]
[351590965,1738651855755,-151.0,8.729e-05,2]
[351590966,1738651855765,-151.0,8.729e-05,2]
[351590967,1738651855774,-151.0,8.729e-05,2]
[351590968,1738651855783,-151.0,8.729e-05,2]
[351590969,1738651855793,-151.0,8.729e-05,2]
[351590970,1738651855802,-158.203791,8.729e-05,2]
[351590971,1738651855811,-500.0,8.729e-05,2]
[351590972,1738651855821,-503.46,8.729e-05,2]
[351590973,1738651855830,-198.19920502,8.729e-05,2]
[351590974,1738651855840,-500.0,8.729e-05,2]
[351590975,1738651855849,-500.0,8.729e-05,2]
[351590976,1738651855859,-500.0,8.729e-05,2]
[351590977,1738651855868,-151.0,8.729e-05,2]
[351590978,1738651855878,-151.0,8.729e-05,2]
[351590979,1738651855888,-151.0,8.729e-05,2]
[351590980,1738651855897,-151.0,8.729e-05,2]
[351590981,1738651855907,-151.0,8.729e-05,2]
[351590982,1738651855917,-500.0,8.729e-05,2]
[351590983,1738651855927,-151.0,8.729e-05,2]
[351590984,1738651855936,-151.0,8.729e-05,2]
[351590985,1738651855946,-233.858178,8.729e-05,2]
[351590986,1738651855956,-637.81,8.729e-05,2]
[351590987,1738651855966,-500.0,8.729e-05,2]
[351590988,1738651855975,-500.0,8.729e-05,2]
[351590989,1738651855985,-500.0,8.729e-05,2]
[351590990,1738651855995,-500.0,8.729e-05,2]
[351590991,1738651856006,-500.0,8.729e-05,2]
[351590992,1738651856016,-500.0,8.729e-05,2]
[351590993,1738651856026,-511.2831666,8.729e-05,2]
[351590994,1738651856037,-500.0,8.729e-05,2]
[351590995,1738651856046,-848.3,8.729e-05,2]
[351590996,1738651856056,-500.0,8.729e-05,2]
[351590997,1738651856066,-500.0,8.729e-05,2]
[351590998,1738651856076,-500.0,8.729e-05,2]
[351590999,1738651856086,-500.0,8.729e-05,2]
[351591000,1738651856097,-500.0,8.729e-05,2]
[351591001,1738651856111,-500.0,8.729e-05,2]
[351591002,1738651856121,-617.18,8.729e-05,2]
[351591003,1738651856131,-500.0,8.729e-05,2]
[351591004,1738651856141,-508.12,8.729e-05,2]
[351591005,1738651856151,-1325.81,8.729e-05,2]
[351591006,1738651856160,-500.0,8.729e-05,2]
[351591007,1738651856169,-500.0,8.729e-05,2]
[351591008,1738651856181,-500.0,8.729e-05,2]
[351591009,1738651856194,-667.07,8.729e-05,2]
[351591010,1738651856204,-500.0,8.729e-05,2]
[351591011,1738651856214,-500.0,8.729e-05,2]
[351591012,1738651856223,-500.0,8.729e-05,2]
[351591013,1738651856233,-500.0,8.729e-05,2]
[351591014,1738651856243,-1020.47,8.729e-05,2]
[351591015,1738651856256,-500.0,8.729e-05,2]
[351591016,1738651856267,-500.0,8.729e-05,2]
[351591017,1738651856276,-500.0,8.729e-05,2]
[351591018,1738651856286,-500.0,8.729e-05,2]
[351591019,1738651856295,-500.0,8.729e-05,2]
[351591020,1738651856305,-971.18,8.729e-05,2]
[351591021,1738651856315,-1055.22,8.729e-05,2]
[351591022,1738651856324,-601.82,8.729e-05,2]
[351591023,1738651856334,-500.0,8.729e-05,2]
[351591024,1738651856343,-500.0,8.729e-05,2]
[351591025,1738651856353,-500.0,8.729e-05,2]
[351591026,1738651856362,-500.0,8.729e-05,2]
[351591027,1738651856372,-500.0,8.729e-05,2]
[351591028,1738651856382,-584.0,8.729e-05,2]
[351591029,1738651856391,-500.0,8.729e-05,2]
[351591030,1738651856401,-664.68,8.729e-05,2]
[351591031,1738651856411,-500.0,8.729e-05,2]
[351591032,1738651856420,-693.7,8.729e-05,2]
[351591033,1738651856429,-500.0,8.729e-05,2]
[351591034,1738651856438,-500.0,8.729e-05,2]
[351591035,1738651856448,-500.0,8.729e-05,2]
[351591036,1738651856458,-500.0,8.729e-05,2]
[351591037,1738651856467,-500.0,8.729e-05,2]
[351591038,1738651856477,-910.68,8.729e-05,2]
[351591039,1738651856486,-500.0,8.729e-05,2]
[351591040,1738651856496,-949.48,8.729e-05,2]
[351591041,1738651856507,-500.0,8.729e-05,2]
[351591042,1738651856517,-500.0,8.729e-05,2]
[351591043,1738651856527,-500.0,8.729e-05,2]
[351591044,1738651856536,-500.0,8.729e-05,2]
[351591045,1738651856545,-649.65,8.729e-05,2]
[351591046,1738651856555,-737.64,8.729e-05,2]
[351591047,1738651856564,-500.0,8.729e-05,2]
[351591048,1738651856573,-405.53755626,8.729e-05,2]
[351591049,1738651856583,-500.0,8.729e-05,2]
[351591050,1738651856592,-500.0,8.729e-05,2]
[351591051,1738651856602,-371.48999086,8.729e-05,2]
[351591052,1738651856612,-500.0,8.729e-05,2]
[351591053,1738651856622,-585.58,8.729e-05,2]
[351591054,1738651856632,-500.0,8.729e-05,2]
[351591055,1738651856642,-500.0,8.729e-05,2]
[351591056,1738651856652,-500.0,8.729e-05,2]
[351591057,1738651856663,-500.0,8.729e-05,2]
[351591058,1738651856673,-500.0,8.729e-05,2]
[351591059,1738651856682,-500.0,8.729e-05,2]
[351591060,1738651856692,-500.0,8.729e-05,2]
[351591061,1738651856701,-500.0,8.729e-05,2]
[351591062,1738651856711,-502.67,8.729e-05,2]
[351591063,1738651856720,-151.0,8.729e-05,2]
[351591064,1738651856729,-500.0,8.729e-05,2]
[351591065,1738651856739,-708.74,8.729e-05,2]
[351591066,1738651856748,-500.0,8.729e-05,2]
[351591067,1738651856760,-500.0,8.729e-05,2]
[351591068,1738651856769,-500.0,8.729e-05,2]
[351591069,1738651856779,-500.0,8.729e-05,2]
[351591070,1738651856788,-500.0,8.729e-05,2]
[351591071,1738651856798,-621.2,8.729e-05,2]
[351591072,1738651856807,-1126.75,8.729e-05,2]
[351591073,1738651856817,-500.0,8.729e-05,2]
[351591074,1738651856827,-500.0,8.729e-05,2]
[351591075,1738651856837,-500.0,8.729e-05,2]
[351591076,1738651856847,-500.0,8.729e-05,2]
[351591077,1738651856856,-500.0,8.729e-05,2]
[351591078,1738651856865,-1267.09,8.729e-05,2]
[351591079,1738651856875,-505.02920499,8.729e-05,2]
[351591080,1738651856885,-500.34112637,8.729e-05,2]
[351591081,1738651856895,-500.0,8.729e-05,2]
[351591082,1738651856904,-500.0,8.729e-05,2]
[351591083,1738651856914,-1330.04,8.729e-05,2]
[351591084,1738651856924,-500.0,8.729e-05,2]
[351591085,1738651856934,-500.0,8.729e-05,2]
[351591086,1738651856944,-500.0,8.729e-05,2]
[351591087,1738651856954,-500.0,8.729e-05,2]
[351591088,1738651856964,-500.0,8.729e-05,2]
[351591089,1738651856974,-5000.0,8.729e-05,2]
[351591090,1738651856983,-893.25,8.729e-05,2]
[351591091,1738651856994,-500.0,8.729e-05,2]
[351591092,1738651857004,-500.0,8.729e-05,2]
[351591093,1738651857014,-500.0,8.729e-05,2]
[351591094,1738651857023,-522.19,8.729e-05,2]
[351591095,1738651857033,-741.38,8.729e-05,2]
[351591096,1738651857043,-500.0,8.729e-05,2]
[351591097,1738651857053,-500.0,8.729e-05,2]
[351591098,1738651857063,-1262.08,8.729e-05,2]
[351591099,1738651857073,-563.03981556,8.729e-05,2]
[351591100,1738651857083,-500.0,8.729e-05,2]
[351591101,1738651857093,-500.0,8.729e-05,2]
[351591102,1738651857104,-500.0,8.729e-05,2]
[351591103,1738651857114,-500.0,8.729e-05,2]
[351591104,1738651857123,-500.0,8.729e-05,2]
[351591105,1738651857133,-500.0,8.729e-05,2]
[351591106,1738651857143,-500.0,8.729e-05,2]
[351591107,1738651857152,-649.6,8.729e-05,2]
[351591108,1738651857162,-1136.55,8.729e-05,2]
[351591109,1738651857172,-500.0,8.729e-05,2]
[351591110,1738651857182,-500.0,8.729e-05,2]
[351591111,1738651857192,-706.95,8.729e-05,2]
[351591112,1738651857201,-500.0,8.729e-05,2]
[351591113,1738651857211,-1345.97,8.729e-05,2]
[351591114,1738651857221,-500.0,8.729e-05,2]
[351591115,1738651857231,-500.0,8.729e-05,2]
[351591116,1738651857241,-502.05841869,8.729e-05,2]
[351591117,1738651857251,-500.0,8.729e-05,2]
[351591118,1738651857261,-500.0,8.729e-05,2]
[351591119,1738651857271,-500.0,8.729e-05,2]
[351591120,1738651857280,-507.13,8.729e-05,2]
[351591121,1738651857291,-732.49,8.729e-05,2]
[351591122,1738651857301,-1293.49,8.729e-05,2]
[351591123,1738651857311,-500.0,8.729e-05,2]
[351591125,1738651857320,-500.0,8.729e-05,2]
[351591126,1738651857330,-500.0,8.729e-05,2]
[351591127,1738651857339,-197.0204,8.729e-05,2]
[351591128,1738651857349,-197.020399,8.729e-05,2]
[351591129,1738651857358,-438.55,8.73e-05,2]
[351591130,1738651857368,-503.41507685,8.74e-05,2]
[351591131,1738651857378,-2232.20085874,8.742e-05,2]
[351591132,1738651857388,-576.29539821,8.745e-05,2]
[351591133,1738651857398,-2236.99571053,8.745e-05,2]
[351591134,1738651857407,-444.56636532,8.746e-05,2]
[351591135,1738651857417,-216.38808946,8.746e-05,2]
[351591136,1738651857427,-152.0,8.746e-05,3]
[351591137,1738651857437,-444.56636532,8.747e-05,2]
[351591138,1738651857446,-211.5559908,8.748e-05,2]
[351591139,1738651857456,-503.41507685,8.751e-05,2]
[351591140,1738651857465,-191293.77721169,8.756e-05,2]
[351591141,1738651857475,-225.32,8.758e-05,2]
[351591142,1738651857484,-191293.77721169,8.759e-05,2]
[351591143,1738651857494,-2236.99571053,8.76e-05,2]
[351591144,1738651857505,-576.29539821,8.76e-05,2]
[351591145,1738651857515,-5011.05501141,8.762e-05,2]
[351591146,1738651857525,-8039.66497767,8.762e-05,2]
[351591147,1738651857535,-2236.99571053,8.764e-05,2]
[351591148,1738651857545,-576.29539821,8.765e-05,2]
[351591149,1738651857554,-2236.99571053,8.765e-05,2]
[351591150,1738651857563,-576.29539821,8.765e-05,2]
[351591151,1738651857573,-191293.77721169,8.767e-05,2]
[351591152,1738651857584,-500.0,8.767e-05,2]
[351591153,1738651857594,-5265.0,8.767e-05,2]
[351591154,1738651857604,-8039.66497767,8.767e-05,2]
[351591155,1738651857613,-2232.20085874,8.767e-05,2]
[351591156,1738651857623,-503.41507685,8.768e-05,2]
[351591157,1738651857633,-211.5559908,8.771e-05,2]
[351591158,1738651857643,-2232.20085874,8.773e-05,2]
[351591159,1738651857653,-216.38808946,8.774e-05,2]
[351591160,1738651857663,-211.5559908,8.775e-05,2]
[351591161,1738651857674,-8039.66497767,8.776e-05,2]
[351591162,1738651857684,-444.56636532,8.777e-05,2]
[351591163,1738651857694,-5011.05501141,8.778e-05,2]
[351591164,1738651857703,-216.38808946,8.782e-05,2]
[351591165,1738651857714,-1382.375,8.783e-05,2]
[351591166,1738651857723,-2023.0,8.783e-05,2]
[351591167,1738651857733,-568.0,8.783e-05,2]
[351591168,1738651857743,-638.0,8.783e-05,2]
[351591169,1738651857753,-1826.0,8.783e-05,2]
[351591170,1738651857763,-1264.0,8.783e-05,2]
[351591171,1738651857774,-783.0,8.783e-05,2]
[351591172,1738651857783,-907.0,8.783e-05,2]
[351591173,1738651857793,-2953.0,8.783e-05,2]
[351591174,1738651857803,-1324.0,8.783e-05,2]
[351591175,1738651857812,-539.0,8.783e-05,2]
[351591176,1738651857986,-150.0,8.783e-05,2]
[351591177,1738651857997,-3911.0,8.783e-05,2]
[351591178,1738651858008,-1108.0,8.783e-05,2]
[351591179,1738651858018,-6578.503775,8.783e-05,2]
[351591180,1738651858028,-755.7464109,8.783e-05,2]
[351591181,1738651858038,-5011.05501141,8.784e-05,2]
[351591182,1738651858048,-444.56636532,8.785e-05,2]
[351591183,1738651858058,-8039.66497767,8.785e-05,2]
[351591184,1738651858068,-503.41507685,8.787e-05,2]
[351591185,1738651858077,-2195.3805565,8.787e-05,2]
[351591186,1738651858088,-1611.382,8.789e-05,2]
[351591187,1738651858099,-500.0,8.789e-05,2]
[351591188,1738651858111,-626.32036997,8.789e-05,2]
[351591189,1738651858121,-1583.7,8.789e-05,2]
[351591190,1738651858130,-151.0,8.79e-05,2]
[351591191,1738651858142,-151.0,8.79e-05,2]
[351591192,1738651858152,-151.0,8.79e-05,2]
[351591193,1738651858162,-151.0,8.79e-05,2]
[351591194,1738651858172,-151.0,8.79e-05,2]
[351591195,1738651858182,-151.0,8.79e-05,2]
[351591196,1738651858193,-500.0,8.79e-05,2]
[351591197,1738651858204,-1583.7,8.79e-05,2]
[351591198,1738651858214,-949.48,8.79e-05,2]
[351591199,1738651858223,-200.0,8.791e-05,2]
[351591200,1738651858232,-250000.0,8.791e-05,2]
[351591201,1738651858242,-151.0,8.791e-05,2]
[351591202,1738651858255,-188.882426,8.791e-05,2]
[351591203,1738651858266,-500.0,8.791e-05,2]
[351591204,1738651858277,-1583.7,8.791e-05,2]
[351591205,1738651858286,-949.48,8.791e-05,2]
[351591206,1738651858296,-5011.05501141,8.791e-05,2]
[351591207,1738651858307,-151.0,8.792e-05,2]
[351591208,1738651858316,-151.0,8.792e-05,2]
[351591209,1738651858326,-151.0,8.792e-05,2]
[351591210,1738651858336,-211.5559908,8.792e-05,2]
[351591211,1738651858347,-10696.19868443,8.793e-05,2]
[351591212,1738651858357,-15122.62088812,8.795e-05,2]
[351591213,1738651858367,-2232.20085874,8.795e-05,2]
[351591214,1738651858378,-151.0,8.795e-05,2]
[351591215,1738651858388,-151.0,8.795e-05,2]
[351591216,1738651858399,-151.0,8.795e-05,2]
[351591217,1738651858409,-265.92648252,8.795e-05,2]
[351591218,1738651858419,-151.0,8.797e-05,2]
[351591219,1738651858430,-191293.77721169,8.797e-05,2]
[351591220,1738651858440,-151.0,8.798e-05,2]
[351591221,1738651858450,-216.38808946,8.798e-05,2]
[351591222,1738651858460,-3722.5,8.799e-05,2]
[351591223,1738651858471,-1037.10875049,8.799e-05,3]
[351591224,1738651858481,-500.0,8.799e-05,2]
[351591225,1738651858491,-500.0,8.799e-05,2]
[351591226,1738651858506,-1583.7,8.799e-05,2]
[351591227,1738651858516,-1583.7,8.799e-05,2]
[351591228,1738651858526,-949.48,8.799e-05,2]
[351591229,1738651858536,-949.48,8.799e-05,2]
[351591230,1738651858546,-222115.68299303,8.8e-05,2]
[351591231,1738651858556,-20000.0,8.8e-05,2]
[351591232,1738651858565,-151.0,8.8e-05,2]
[351591233,1738651858575,-113100.40675762,8.8e-05,2]
[351591234,1738651858584,-267.267333,8.8e-05,2]
[351591235,1738651858593,-4400.0,8.8e-05,3]
[351591236,1738651858603,-4482.22067735,8.8e-05,2]
[351591237,1738651858613,-4482.22067721,8.8e-05,2]
[351591238,1738651858623,-4482.22067721,8.8e-05,2]
[351591239,1738651858633,-4482.22067721,8.8e-05,2]
[351591240,1738651858642,-4482.22067721,8.8e-05,2]
[351591241,1738651858652,-4482.22067721,8.8e-05,2]